fUSD/lending_fUSD_20240709
["ID","MTS","AMOUNT","RATE_DAILY","PERIOD"]
[331558330,1720501844728,-25430.12597762,0.00014,2]
[331558333,1720501844742,-515.25570728,0.00014,2]
[331558468,1720501845839,-2243.48110308,0.00014,2]
[331558471,1720501845850,-11132.90869594,0.00014,2]
[331558474,1720501845861,-924.33950268,0.00014,2]
[331558477,1720501845873,-1101.1,0.00014,2]
[331558481,1720501845885,-300.0,0.00014,2]
[331558485,1720501845896,-2745.0,0.00014,2]
[331558489,1720501845915,-1722.22563308,0.00014,2]
[331558512,1720501846048,-1650.24238056,0.00014,2]
[331558541,1720501846256,-4146.13181591,0.00014,2]
[331558544,1720501846275,-155.27043915,0.00013899,2]
[331558546,1720501846284,-220.66185063,0.00014,2]
[331558548,1720501846296,-550.0,0.00014,2]
[331558550,1720501846307,-22779.61371223,0.00014,2]
[331558552,1720501846319,-412.71051882,0.00014,2]
[331560145,1720501920608,474.9799257,0.00011199,2]
[331560146,1720501923310,197.63209889,0.00011199,2]
[331560147,1720501923410,2910.61635358,0.00011199,2]
[331560149,1720501927863,264.66120424,0.00011199,2]
[331560150,1720501936043,222.68880373,0.00011199,2]
[331560151,1720501939683,2373.36866596,0.00011199,2]
[331560153,1720501957058,239.15150149,0.00011199,2]
[331560154,1720501957214,794.12995921,0.00011199,2]
[331560172,1720502496963,468.16,0.0001086,2]
[331560175,1720502607680,520.51131707,0.00011199,2]
[331560176,1720502614461,155.0,0.00011199,2]
[331560177,1720502643473,254.25713924,0.00011199,2]
[331560178,1720502654434,272.95514635,0.00011199,2]
[331560179,1720502662394,2791.42364177,0.00011199,2]
[331560180,1720502720574,155.81893636,0.00011199,2]
[331560181,1720502721590,266.1096228,0.00011199,2]
[331560184,1720502800067,218.18926411,0.00011199,2]
[331560185,1720502841969,199.24588859,0.00011199,2]
[331560186,1720502852870,229.34777538,0.00011199,2]
[331560187,1720502933486,6939.98990535,0.00011199,2]
[331560189,1720503032767,-153.81527193,0.000126,2]
[331560191,1720503032778,-250.0,0.00012716,2]
[331560193,1720503032789,-1180.21,0.00012748,2]
[331560195,1720503032800,-913.19,0.00012749,2]
[331560197,1720503032811,-198.8,0.00012763,2]
[331560199,1720503032822,-3673.87,0.00012825,2]
[331560201,1720503032832,-150.0,0.00012885,2]
[331560203,1720503032843,-176.47,0.00012892,2]
[331560205,1720503032853,-1000.0,0.00013055,2]
[331560207,1720503032864,-499.99,0.0001308,2]
[331560209,1720503032877,-468.16,0.00013123,2]
[331560211,1720503032889,-200.0,0.000134,4]
[331560213,1720503032900,-150.0,0.00013473,2]
[331560215,1720503032911,-1000.0,0.00013473,2]
[331560216,1720503032921,-17527.1658057,0.00013474,2]
[331560217,1720503032933,-18719.8899943,0.00013474,2]
[331560218,1720503032944,-500.0,0.000135,4]
[331560219,1720503032954,-259.57337553,0.00013574,2]
[331560220,1720503032966,-3395.23414486,0.00013574,2]
[331560221,1720503032982,-800.0,0.000136,4]
[331560222,1720503032992,-1500.0,0.00013699,5]
[331560223,1720503033002,-250.0,0.00013699,2]
[331560224,1720503033012,-427.09,0.00013699,2]
[331560225,1720503033023,-904.58,0.00013699,2]
[331560226,1720503033032,-1100.0,0.000137,5]
[331560227,1720503033042,-920.22705153,0.00013736,2]
[331560228,1720503033052,-417.93936495,0.0001378,2]
[331560229,1720503033062,-240.0,0.000138,2]
[331560230,1720503033071,-1400.0,0.000138,5]
[331560231,1720503033081,-500.0,0.00013887,2]
[331560232,1720503033091,-200.0,0.00013887,2]
[331560233,1720503033100,-500.0,0.00013888,2]
[331560234,1720503033110,-200.0,0.00013888,2]
[331560235,1720503033120,-3000.0,0.00013888,2]
[331560236,1720503033129,-500.0,0.00013888,2]
[331560237,1720503033139,-500.0,0.00013888,2]
[331560238,1720503033148,-500.0,0.00013888,2]
[331560239,1720503033158,-200.0,0.00013888,2]
[331560240,1720503033167,-200.0,0.00013888,2]
[331560241,1720503033177,-220.12,0.0001389,3]
[331560242,1720503033188,-2532.27103666,0.00013895,2]
[331560243,1720503033197,-454.2546,0.000139,2]
[331560244,1720503033207,-162.26611918,0.000139,2]
[331560245,1720503033221,-7397.3169,0.000139,2]
[331560246,1720503033232,-2402.1722181,0.000139,2]
[331560247,1720503033241,-200.0,0.000139,5]
[331560248,1720503033251,-1000.0,0.000139,2]
[331560249,1720503033270,-320.51619008,0.000139,2]
[331560250,1720503033282,-928.92136526,0.000139,2]
[331560251,1720503033292,-150.5,0.0001397,7]
[331560252,1720503033301,-2000.0,0.00013973,3]
[331560253,1720503033310,-150.5,0.0001398,7]
[331560254,1720503033320,-530.79948627,0.00013989,2]
[331560255,1720503033330,-150.5,0.0001399,7]
[331560256,1720503033340,-207.19,0.0001399,2]
[331560257,1720503033350,-207.19,0.0001399,2]
[331560258,1720503033359,-207.19,0.0001399,2]
[331560259,1720503033369,-207.19,0.0001399,2]
[331560260,1720503033379,-207.19,0.0001399,2]
[331560261,1720503033389,-7014.67815332,0.00013995,2]
[331560262,1720503033403,-6075.0,0.00013995,2]
[331560263,1720503033417,-700.0,0.00013995,2]
[331560264,1720503033428,-2732.095284,0.00013995,2]
[331560265,1720503033440,-1200.0,0.00013995,2]
[331560266,1720503033453,-459.92029315,0.00013995,2]
[331560267,1720503033470,-32728.67762333,0.00013995,2]
[331560268,1720503033479,-2771.25979614,0.00013995,2]
[331560278,1720503038088,-205.22622907,0.000139,2]
[331560279,1720503038098,-269.5331071,0.00013995,2]
[331560280,1720503038110,-366.78339208,0.00013995,2]
[331560281,1720503038121,-2199.44251202,0.00013995,2]
[331560282,1720503038133,-4354.36380711,0.00013995,2]
[331560283,1720503038201,-347.9736861,0.00013995,2]
[331560284,1720503038298,-280.407,0.00013995,2]
[331560285,1720503038309,-888.51999758,0.00013995,2]
[331560442,1720503040170,-353.93450637,0.00013995,2]
[331560486,1720503040606,-250.0,0.00013995,2]
[331560803,1720503043479,-873.43840934,0.00013995,2]
[331560805,1720503043490,-404.83116397,0.00013995,2]
[331560807,1720503043502,-345.020001,0.00013995,2]
[331560810,1720503043514,-2220.95778782,0.00013995,2]
[331560848,1720503044573,-198.71143967,0.00013995,2]
[331560849,1720503044582,-3310.0609344,0.00013995,2]
[331560850,1720503044592,-237.27449701,0.00013999,2]
[331560851,1720503044602,-703.0,0.00014,2]
[331560852,1720503044611,-13986.19295357,0.00014,2]
[331560861,1720503046604,-11003.05520453,0.00014,2]
[331560862,1720503046695,-768.85,0.00014,2]
[331560886,1720503734826,452.2,0.00011042,2]
[331560900,1720504147072,70000.0,0.00027,120]
[331560903,1720504177690,-1237.8539366,0.000118,2]
[331560904,1720504195593,50000.0,0.00027,120]
[331560905,1720504201927,-156.08364642,0.000126,2]
[331560906,1720504201950,-1852.42,0.00012787,2]
[331560907,1720504201976,-335.93,0.00012822,2]
[331560908,1720504201997,-250.0,0.00012838,2]
[331560909,1720504202021,-150.0,0.00012844,2]
[331560910,1720504202045,-300.0,0.00012844,2]
[331560911,1720504202072,-1297.71241698,0.00012845,2]
[331560919,1720504232296,-227.27128939,0.00012314,2]
[331560920,1720504232306,-259.34697662,0.00012844,2]
[331560924,1720504232842,-40.65302338,0.00012844,2]
[331560925,1720504232852,-1857.69469412,0.00012845,2]
[331560926,1720504232868,-5892.7144032,0.00012845,2]
[331560927,1720504232880,-13009.1884857,0.00012845,2]
[331560930,1720504232890,-3855.49175545,0.00012864,2]
[331560934,1720504232903,-3120.96824455,0.00012864,2]
[331560936,1720504232912,-200.0,0.00012937,2]
[331560938,1720504232922,-944.22848795,0.00013181,2]
[331560939,1720504232934,-55.77151205,0.00013181,2]
[331560940,1720504232945,-188.45,0.00013216,2]
[331560941,1720504232954,-452.2,0.00013306,2]
[331560943,1720504232963,-1945.53199249,0.00013448,2]
[331560944,1720504232975,-334.46800751,0.00013448,2]
[331560945,1720504232985,-901.20187645,0.000135,2]
[331560946,1720504232996,-98.79812355,0.000135,2]
[331560947,1720504233007,-315.6348055,0.000136,2]
[331560948,1720504233016,-701.3651945,0.000136,2]
[331560949,1720504233025,-1500.0,0.00013699,5]
[331560950,1720504233032,-312.44,0.00013699,2]
[331560951,1720504233041,-250.0,0.00013699,2]
[331560952,1720504233050,-2892.55413173,0.00013799,2]
[331560953,1720504233061,-2189.30779641,0.00013799,2]
[331560954,1720504233070,-3485.4308001,0.000138,2]
[331560955,1720504233081,-3398.02074401,0.000138,2]
[331560956,1720504233093,-44445.43595729,0.000138,2]
[331560957,1720504233104,-27986.5626986,0.000138,2]
[331560958,1720504233113,-2500.0,0.000138,2]
[331560959,1720504233123,-2279.04393294,0.000138,2]
[331560960,1720504233131,-417.93936495,0.0001386,2]
[331560961,1720504233142,-3000.0,0.00013888,2]
[331560962,1720504233151,-200.0,0.00013888,2]
[331560963,1720504233160,-614.49,0.0001389,3]
[331560964,1720504233169,-828.75,0.0001389,2]
[331560965,1720504233179,-220.33,0.0001389,2]
[331560966,1720504233188,-486.3734,0.00013899,2]
[331560967,1720504233197,-194.16886814,0.00013899,2]
[331560968,1720504233206,-474.92730396,0.00013899,2]
[331560969,1720504233215,-5342.9249929,0.000139,2]
[331560970,1720504233261,-979.38,0.000139,2]
[331560971,1720504233272,-1435.02867696,0.000139,2]
[331560974,1720504238255,-339.97495042,0.000139,2]
[331560975,1720504238272,-556.34975306,0.000139,2]
[331560976,1720504238284,-1340.01178555,0.000139,2]
[331560977,1720504238402,-3511.99297866,0.000139,2]
[331560978,1720504238413,-1165.26374629,0.000139,2]
[331560979,1720504238425,-16592.60688411,0.000139,2]
[331560980,1720504238437,-3121.61111413,0.000139,2]
[331560981,1720504238450,-1977.36403992,0.000139,2]
[331560982,1720504238462,-1189.99134495,0.000139,2]
[331560983,1720504238483,-6014.02367872,0.000139,2]
[331560984,1720504238496,-2318.7552802,0.000139,2]
[331560985,1720504238509,-1770.920198,0.000139,2]
[331560986,1720504238534,-550.50390195,0.000139,2]
[331560987,1720504238546,-609.55481835,0.000139,2]
[331560988,1720504238558,-66584.4493812,0.000139,2]
[331560989,1720504238575,-15111.25577463,0.000139,2]
[331560990,1720504238585,-157.28009544,0.000139,2]
[331560991,1720504238595,-162.26611918,0.000139,2]
[331560992,1720504238604,-156.62970523,0.000139,2]
[331560993,1720504238614,-181.44669515,0.000139,2]
[331560994,1720504238624,-214.92577263,0.000139,2]
[331560995,1720504238634,-194.16886813,0.000139,2]
[331560996,1720504238645,-321.24726326,0.000139,2]
[331560997,1720504238655,-752.56805972,0.000139,2]
[331560998,1720504238664,-2252.41629664,0.000139,2]
[331560999,1720504238674,-50.90768661,0.000139,2]
[331561000,1720504238686,-374.61323312,0.000139,2]
[331561001,1720504238696,-255.0,0.00013949,2]
[331561002,1720504238705,-856.3867667,0.00013973,2]
[331561003,1720504238717,-3204.8252333,0.00013973,2]
[331561004,1720504238727,-183.44772533,0.0001399,2]
[331561005,1720504238737,-3134.4778433,0.00013995,2]
[331561006,1720504238746,-38968.1666856,0.00013995,2]
[331561008,1720504238755,-11284.153529,0.00013995,2]
[331561011,1720504238765,-259.16061162,0.00013999,2]
[331561013,1720504238775,-184.37863355,0.00013999,2]
[331561015,1720504238784,-229.20813617,0.00013999,2]
[331561017,1720504238794,-316.0921479,0.00013999,2]
[331561019,1720504238804,-500.0,0.00013999,2]
[331561021,1720504238813,-500.0,0.00013999,2]
[331561023,1720504238823,-126.38002739,0.00013999,2]
[331561025,1720504238834,-373.61997261,0.00013999,2]
[331561027,1720504238844,-351.45465195,0.00013999,2]
[331561029,1720504238856,-148.54534805,0.00013999,2]
[331561031,1720504238868,-448.69465195,0.00013999,2]
[331561226,1720504241388,-51.30534805,0.00013999,2]
[331561227,1720504241399,-308.21142211,0.00013999,2]
[331561228,1720504241408,-500.0,0.00013999,2]
[331561229,1720504241417,-219.2556006,0.00013999,2]
[331561230,1720504241426,-500.0,0.00013999,2]
[331561231,1720504241435,-500.0,0.00013999,2]
[331561232,1720504241444,-521.55761961,0.00013999,2]
[331561233,1720504241454,-639.5906873,0.00013999,2]
[331561234,1720504241463,-500.0,0.00013999,2]
[331561235,1720504241471,-441.66993952,0.00013999,2]
[331561236,1720504241483,-58.33006048,0.00013999,2]
[331561237,1720504241492,-500.0,0.00013999,2]
[331561238,1720504241501,-500.0,0.00013999,2]
[331561239,1720504241511,-500.0,0.00013999,2]
[331561240,1720504241520,-500.0,0.00013999,2]
[331561241,1720504241529,-500.0,0.00013999,2]
[331561242,1720504241538,-500.0,0.00013999,2]
[331561243,1720504241547,-500.0,0.00013999,2]
[331561244,1720504241556,-94.65031553,0.00013999,2]
[331561245,1720504241568,-315.6,0.00013999,2]
[331561246,1720504241585,-89.74968447,0.00013999,2]
[331561247,1720504241595,-404.19689858,0.00013999,2]
[331561248,1720504241606,-95.80310142,0.00013999,2]
[331561249,1720504241615,-477.47314164,0.00013999,2]
[331561250,1720504241630,-22.52685836,0.00013999,2]
[331561251,1720504241639,-500.0,0.00013999,2]
[331561252,1720504241648,-500.0,0.00013999,2]
[331561253,1720504241657,-500.0,0.00013999,2]
[331561254,1720504241666,-500.0,0.00013999,2]
[331561255,1720504241678,-500.0,0.00013999,2]
[331561256,1720504241687,-500.0,0.00013999,2]
[331561257,1720504241696,-500.0,0.00013999,2]
[331561258,1720504241706,-500.0,0.00013999,2]
[331561259,1720504241714,-500.0,0.00013999,2]
[331561260,1720504241723,-500.0,0.00013999,2]
[331561261,1720504241732,-500.0,0.00013999,2]
[331561262,1720504241741,-500.0,0.00013999,2]
[331561263,1720504241751,-500.0,0.00013999,2]
[331561264,1720504241760,-500.0,0.00013999,2]
[331561265,1720504241769,-500.0,0.00013999,2]
[331561266,1720504241778,-500.0,0.00013999,2]
[331561267,1720504241787,-500.0,0.00013999,2]
[331561268,1720504241796,-500.0,0.00013999,2]
[331561269,1720504241811,-249.4184557,0.00013999,2]
[331561270,1720504241820,-500.0,0.00013999,2]
[331561271,1720504241829,-500.0,0.00013999,2]
[331561272,1720504241838,-500.0,0.00013999,2]
[331561273,1720504241847,-500.0,0.00013999,2]
[331561274,1720504241856,-373.99564986,0.00013999,2]
[331561275,1720504241868,-126.00435014,0.00013999,2]
[331561276,1720504241877,-500.0,0.00013999,2]
[331561277,1720504241886,-500.0,0.00013999,2]
[331561278,1720504241897,-640.01579262,0.00013999,2]
[331561279,1720504241906,-609.91062415,0.00013999,2]
[331561280,1720504241915,-500.0,0.00013999,2]
[331561281,1720504241924,-500.0,0.00013999,2]
[331561282,1720504241935,-500.0,0.00013999,2]
[331561283,1720504241948,-500.0,0.00013999,2]
[331561284,1720504241958,-500.0,0.00013999,2]
[331561285,1720504241968,-500.0,0.00013999,2]
[331561286,1720504241978,-500.0,0.00013999,2]
[331561287,1720504241988,-500.0,0.00013999,2]
[331561288,1720504241998,-500.0,0.00013999,2]
[331561289,1720504242007,-500.0,0.00013999,2]
[331561290,1720504242016,-629.0,0.00014,2]
[331561291,1720504242026,-74726.90455737,0.00014,2]
[331561292,1720504242038,-1292.76814614,0.00014,2]
[331561293,1720504242049,-51079.54351131,0.00014,2]
[331561294,1720504242061,-43963.15270638,0.00014,2]
[331561295,1720504242080,-13042.14392744,0.00014,2]
[331561296,1720504242092,-51500.21856545,0.00014,2]
[331561297,1720504242104,-464.86416248,0.00014,2]
[331561298,1720504242116,-1245.70958452,0.00014,2]
[331561299,1720504242128,-332.98441238,0.00014,2]
[331561300,1720504242146,-1492.15516326,0.00014,2]
[331561301,1720504242157,-9160.56841459,0.00014,2]
[331561302,1720504242167,-4608.46810061,0.00014,2]
[331561318,1720504243484,-1438.78735,0.00014,2]
[331561320,1720504243495,-1963.95623651,0.00014,2]
[331561322,1720504243506,-4507.50040909,0.00014,2]
[331561330,1720504244556,-3077.50740724,0.00014,2]
[331561331,1720504244567,-1144.36375668,0.00014,2]
[331561332,1720504244578,-665.21409597,0.00014,2]
[331561333,1720504244589,-551450.47029156,0.00014,2]
[331561334,1720504244601,-790.18897835,0.00014,2]
[331561335,1720504244614,-2878.46718703,0.00014,2]
[331561336,1720504244625,-3799.999993,0.00014,2]
[331561337,1720504244638,-2743.43994,0.00014,2]
[331561338,1720504244654,-489.29187735,0.00014,2]
[331561339,1720504244666,-2716.19427016,0.00014,2]
[331561340,1720504244681,-1069651.05642312,0.00014,2]
[331561341,1720504244694,-899.3916763,0.00014,2]
[331561342,1720504244708,-695.84866301,0.00014,2]
[331561343,1720504244721,-1276.4995102,0.00014,2]
[331561344,1720504244734,-3918.7910805,0.00014,2]
[331561345,1720504244747,-1965.21193743,0.00014,2]
[331561346,1720504246556,-4506.06258621,0.00014,2]
[331561347,1720504246568,-276.90558802,0.00014,2]
[331561348,1720504246580,-926.66902096,0.00014,2]
[331561349,1720504246608,-1437.56601913,0.00014,2]
[331561350,1720504246657,-1207.68777187,0.00014,2]
[331561351,1720504246718,-345.66,0.00014,2]
[331561352,1720504246729,-1033.59720923,0.00014,2]
[331561353,1720504246761,-9491.1,0.00014,2]
[331561354,1720504246772,-335.9197241,0.00014,2]
[331561355,1720504246783,-404.4192757,0.00014,2]
[331561356,1720504246805,-817.82184304,0.00014,2]
[331561357,1720504246816,-5570.45453968,0.00014,2]
[331561359,1720504303300,796.2,0.00027,120]
[331561361,1720504665320,1016.0,0.00027,120]
[331561362,1720504874640,437.2,0.0001072,2]
[331561363,1720504957430,-247.99278588,0.00011201,2]
[331561364,1720504957908,-216.20127993,0.00011201,2]
[331561365,1720504997544,1465.123,0.00027,120]
[331561366,1720505428467,415.34,0.00010232,2]
[331561372,1720505431477,-139.80593419,0.00011201,2]
[331561373,1720505431489,-300.0,0.00011995,2]
[331561375,1720505431500,-230.98101029,0.00011996,2]
[331561379,1720505431536,-265460.6960131,0.00011996,2]
[331561392,1720505431700,-15177.3434825,0.00011996,2]
[331561404,1720505432799,-18570.756,0.00011996,2]
[331561406,1720505432813,-10350.41485149,0.00011996,2]
[331561407,1720505432833,-4943.83845254,0.00011996,2]
[331561408,1720505432860,-889.15149544,0.00011996,2]
[331561409,1720505432891,-443.24839096,0.00011996,2]
[331561410,1720505432915,-14758.376858,0.00011996,2]
[331561411,1720505432927,-450.037073,0.00011996,2]
[331561412,1720505432939,-653.26372546,0.00011996,2]
[331561413,1720505432950,-79739.89264722,0.00011996,2]
[331561414,1720505432960,-250.0,0.00012089,2]
[331561415,1720505432970,-468.17,0.00012139,2]
[331561416,1720505432980,-2875.8,0.00012372,2]
[331561417,1720505432989,-150.76,0.00012401,2]
[331561418,1720505433001,-415.34,0.00012496,2]
[331561419,1720505433011,-250.0,0.00012608,2]
[331561420,1720505433020,-157.22,0.00012661,2]
[331561421,1720505433029,-157.22,0.00012712,2]
[331561422,1720505433038,-157.22,0.00012762,2]
[331561423,1720505433048,-157.22,0.00012813,2]
[331561424,1720505433057,-157.22,0.00012864,2]
[331561425,1720505433067,-22912.4778,0.000129,2]
[331561426,1720505433076,-157.22,0.00012915,2]
[331561427,1720505433086,-157.22,0.00012965,2]
[331561428,1720505433096,-216.20127993,0.00012994,2]
[331561429,1720505433106,-180678.65904815,0.00013,2]
[331561430,1720505433115,-157.22,0.00013016,2]
[331561431,1720505433124,-157.22,0.00013067,2]
[331561432,1720505433134,-157.22,0.00013117,2]
[331561433,1720505433144,-157.22,0.00013168,2]
[331561434,1720505433153,-157.22,0.00013219,2]
[331561435,1720505433163,-179.17,0.00013256,2]
[331561436,1720505433172,-157.22,0.0001327,2]
[331561437,1720505433187,-300.0,0.000133,4]
[331561438,1720505433197,-1000.0,0.00013318,2]
[331561439,1720505433207,-157.22,0.0001332,2]
[331561440,1720505433217,-600.0,0.000134,4]
[331561441,1720505433227,-1000.0,0.000135,4]
[331561442,1720505433237,-934.54460571,0.00013532,2]
[331561443,1720505433248,-1300.0,0.000136,4]
[331561444,1720505433258,-249.86,0.00013699,2]
[331561445,1720505433268,-200.0,0.00013699,2]
[331561446,1720505433278,-250.0,0.00013699,2]
[331561447,1720505433287,-10000.0,0.00013699,2]
[331561448,1720505433297,-1700.0,0.000137,5]
[331561449,1720505433308,-2051.1395397,0.0001379,2]
[331561450,1720505433318,-11959.1607,0.000138,2]
[331561451,1720505433327,-234.35008468,0.000138,2]
[331561452,1720505433340,-1283.32851532,0.000138,2]
[331561453,1720505433350,-300.0,0.000138,5]
[331561454,1720505433360,-500.0,0.00013888,2]
[331561455,1720505433369,-200.0,0.00013888,2]
[331561456,1720505433379,-295.1182402,0.00013889,2]
[331561457,1720505433388,-482.72927632,0.00013889,2]
[331561458,1720505433399,-1839.0515,0.000139,2]
[331561459,1720505433408,-1000.0,0.000139,2]
[331561460,1720505433418,-162.26611918,0.000139,2]
[331561461,1720505433428,-300.0,0.000139,5]
[331561462,1720505433437,-174.26236971,0.000139,2]
[331561463,1720505433450,-760.28223601,0.000139,2]
[331561464,1720505433459,-178.61,0.00013908,2]
[331561465,1720505433468,-150.76,0.00013951,2]
[331561466,1720505433478,-230.49815466,0.00013967,2]
[331561467,1720505433491,-187.44121029,0.00013967,2]
[331561468,1720505433503,-173.5,0.00013981,2]
[331561469,1720505433513,-81.75378971,0.00013989,2]
[331561470,1720505433525,-138.58096121,0.00013989,2]
[331561471,1720505433535,-355.70171658,0.00013998,2]
[331561472,1720505433547,-1600.39988092,0.00013998,2]
[331561473,1720505433556,-1976.7796685,0.00013998,2]
[331561474,1720505433566,-221.26450353,0.00013999,2]
[331561475,1720505433576,-160.44569532,0.00013999,2]
[331561476,1720505433585,-500.0,0.00013999,2]
[331561477,1720505433595,-460.00175474,0.00013999,2]
[331561478,1720505433605,-500.0,0.00013999,2]
[331561479,1720505433618,-500.0,0.00013999,2]
[331561480,1720505433628,-410.99106242,0.00013999,2]
[331561481,1720505433642,-191.02840007,0.00013999,2]
[331561482,1720505433651,-416.60205063,0.00013999,2]
[331561483,1720505433662,-346.55980804,0.00013999,2]
[331561484,1720505433672,-182.1714762,0.00013999,2]
[331561485,1720505433682,-155.0,0.00013999,2]
[331561486,1720505433693,-633.0,0.00014,2]
[331561487,1720505433703,-307953.55935175,0.00014,2]
[331561513,1720505437830,-22.84480045,0.00012994,2]
[331561516,1720505437842,-193.35647948,0.00012994,2]
[331561518,1720505437852,-384.63352052,0.00014,2]
[331561615,1720505439880,-2762.22086916,0.00014,2]
[331561616,1720505439965,-5771.50522694,0.00014,2]
[331561700,1720505442692,-571.0,0.00014,2]
[331561703,1720505442708,-7574.08113333,0.00014,2]
[331561705,1720505442721,-4115.47231516,0.00014,2]
[331561715,1720505443871,-1903.54310028,0.00014,2]
[331561716,1720505443883,-324.140288,0.00014,2]
[331561717,1720505443895,-2580.0,0.00014,2]
[331561748,1720505447167,-850.0,0.00014,2]
[331561749,1720505447183,-1944.6647616,0.00014,2]
[331561750,1720505504273,314.18589,0.00027,120]
[331561751,1720505988985,439.22,0.0001067,2]
[331561752,1720506055925,252.82801243,0.0001067,2]
[331561753,1720506293720,13417.97809473,0.00011199,2]
[331561754,1720506345346,6274.98729139,0.00011199,2]
[331561755,1720506445785,1113.48194448,0.00011199,2]
[331561756,1720506464851,227.27128939,0.00011199,2]
[331561757,1720506509423,447.4,0.00010416,2]
[331561759,1720506632038,-250.0,0.0001227,2]
[331561760,1720506632050,-555.36977144,0.00012302,2]
[331561761,1720506632781,-392.51750638,0.00012302,2]
[331561762,1720506632793,-226.55818996,0.00012314,2]
[331561764,1720506632805,-2004.57,0.00012394,2]
[331561766,1720506632815,-1237.4,0.00012422,2]
[331561767,1720506632824,-200.0,0.00012464,2]
[331561768,1720506632834,-300.0,0.00012473,2]
[331561769,1720506632844,-150.0,0.00012473,2]
[331561770,1720506632853,-1462.14293361,0.00012473,2]
[331561771,1720506632865,-1870.38996154,0.00012473,2]
[331561772,1720506632877,-1518.26710485,0.00012473,2]
[331561773,1720506632886,-4981.73289515,0.00012474,2]
[331561774,1720506632898,-562.43544538,0.00012474,2]
[331561775,1720506632909,-1094.89027509,0.00012474,2]
[331561776,1720506632920,-971.11180087,0.00012474,2]
[331561777,1720506632931,-5792.67352797,0.00012474,2]
[331561778,1720506632942,-7343.88972904,0.00012474,2]
[331561779,1720506632954,-3143.2663265,0.00012474,2]
[331561780,1720506632964,-250.0,0.00012487,2]
[331561781,1720506632978,-179.17,0.00012492,2]
[331561782,1720506632992,-744.21,0.000126,2]
[331561783,1720506633001,-155.27484753,0.00012625,2]
[331561784,1720506633011,-685.36886605,0.00012625,2]
[331561785,1720506633031,-685.36886605,0.00012625,2]
[331561786,1720506633040,-292.61554308,0.00012625,2]
[331561787,1720506633052,-219.5,0.0001267,2]
[331561788,1720506633063,-447.4,0.0001268,2]
[331561789,1720506633073,-219.5,0.00012705,2]
[331561790,1720506633082,-219.5,0.0001274,2]
[331561791,1720506633092,-212.43928309,0.00012774,2]
[331561792,1720506633103,-7.06071691,0.00012774,2]
[331561793,1720506633113,-219.5,0.00012809,2]
[331561794,1720506633123,-125.33784163,0.00012844,2]
[331561795,1720506633135,-94.16215837,0.00012844,2]
[331561796,1720506633144,-219.5,0.00012879,2]
[331561797,1720506633153,-219.5,0.00012913,2]
[331561798,1720506633163,-2161.88095211,0.00012934,2]
[331561799,1720506633175,-499.64904789,0.00012934,2]
[331561800,1720506633184,-10954.73827399,0.00012934,2]
[331561801,1720506633196,-3548.72172601,0.00012934,2]
[331561802,1720506633207,-578.64,0.00012934,2]
[331561803,1720506633217,-3249.63,0.00012934,2]
[331561804,1720506633227,-179.99,0.00012934,2]
[331561805,1720506633236,-499.99,0.00012934,2]
[331561806,1720506633246,-1000.0,0.00012941,2]
[331561807,1720506633256,-4982.23,0.00012941,2]
[331561808,1720506633265,-219.5,0.00012948,2]
[331561809,1720506633275,-219.5,0.00012983,2]
[331561810,1720506633284,-219.5,0.00013018,2]
[331561811,1720506633294,-3803.28985066,0.0001304,2]
[331561812,1720506633307,-6196.70014934,0.0001304,2]
[331561813,1720506633316,-219.5,0.00013052,2]
[331561814,1720506633326,-219.5,0.00013087,2]